[Event "Austria Championship Blitz 2024"]
[Site "Innsbruck"]
[Date "2024.06.01"]
[Round "11.2"]
[White "Horvath, Dominik"]
[Black "Kruckenhauser, Arthur"]
[Result "1-0"]
[ECO "B14"]
[WhiteElo "2554"]
[BlackElo "2340"]
[Annotator "TA"]
[PlyCount "91"]
[EventDate "2024.06.01"]
[EventType "swiss"]
[EventCountry "AUT"]
[SourceTitle "playchess.com"]
[Source "ChessBase"]
[SourceQuality "1"]
[TimeControl "180+2"]

{[%evp 25,91,70,246,232,261,156,202,97,365,19,76,0,0,-11,31,29,26,-10,0,-31,0,-35,0,0,45,46,68,9,19,0,0,0,37,0,16,24,93,71,146,56,75,0,0,-27,-28,-465,57,42,109,52,45,60,322,56,2222,129,177,188,197,181,186,166,172,172,551,523,816,776]} 1. d4 {[%emt 0:00:00]} Nf6 {[%emt 0:00:00]} 2. c4 {[%emt 0:00:01]} c5 {[%emt 0:00:01]} 3. e3 {[%emt 0:00:05]} cxd4 {[%emt 0:00:08]} 4. exd4 {[%emt 0:00:00]} d5 {[%emt 0:00:01]} 5. Nc3 {[%emt 0:00:01]} g6 {[%emt 0:00:08]} 6. Qb3 {[%emt 0:00:07]} Bg7 {[%emt 0:00:30]} 7. cxd5 {[%emt 0:00:02]} O-O {[%emt 0:00:01]} 8. Nge2 {[%emt 0:00:04]} Nbd7 {[%emt 0:00:04]} 9. Nf4 {[%emt 0:00:04]} Nb6 {[%emt 0:00:01] B14: Caro-Kann: Panov-Botvinnik Attack with 5...e6 and 5...g6.} 10. h4 $5 {[%emt 0:00:03][%mdl 4] A promising side line.} Ne8 $146 {[%emt 0:00:12]} ({Predecessor:} 10... Bf5 11. Be2 Qd7 12. f3 h5 13. Be3 Rfd8 14. Rg1 Kh7 15. Rd1 Rac8 16. Qa3 a6 17. Kf2 {1-0 Kurkin,S-Terentiev,A (2280) Kaluga Tsiolkovsky Memorial op 2003 (2)}) 11. h5 {[%emt 0:00:50]} g5 {[%emt 0:00:15]} 12. h6 {[%emt 0:00:18]} Bf6 {[%emt 0:00:34]} 13. Nh5 {[%emt 0:00:05]} e6 $2 {[%emt 0:00:01]} ({Black should try} 13... Bf5 $14) 14. Nxf6+ $18 {[%emt 0:00:06]} Qxf6 {[%emt 0:00:02]} 15. Be3 {[%emt 0:00:05]} (15. Rh5 $18 Qe7 16. Rxg5+ (16. Bxg5 f6 $18) 16... Kh8 17. Be2) 15... Nd6 {[%emt 0:00:08]} (15... Qg6 $16 {was necessary.} 16. Be2 g4 17. dxe6 Bxe6) 16. Bd3 {[%emt 0:00:20]} (16. Rh5 $18 {has better winning chances. And now Bd3 would win.} Re8 17. Rxg5+ Kh8 18. Be2) 16... Nf5 $2 {[%emt 0:00:06][%mdl 8192]} (16... exd5 $16 17. Nxd5 Nxd5 18. Qxd5 Bf5) 17. Bxf5 $2 (17. Ne4 $18 Qg6 18. Rh5 (18. Nxg5 Nxd5 19. Bd2 Qf6 $18)) 17... Qxf5 {[%emt 0:00:01]} (17... exf5 $11 {keeps the balance.} 18. f4 Re8) 18. Rh5 {[%emt 0:00:17]} (18. dxe6 $16 Bxe6 19. Qb5) 18... f6 $11 {[%emt 0:00:12]} 19. d6 {[%emt 0:00:24]} Kh8 {[%emt 0:00:09]} 20. Rh3 {[%emt 0:00:07]} Bd7 {[%emt 0:00:09]} 21. Rf3 {[%emt 0:00:22]} Qg6 {[%emt 0:00:04]} 22. d5 {[%emt 0:00:01]} exd5 {[%emt 0:00:25]} (22... e5 $5) 23. Bd4 {[%emt 0:00:14]} ({Much worse is} 23. Nxd5 Nxd5 24. Qxd5 Bc6 $17) 23... Rae8+ {[%emt 0:00:03]} (23... g4 $5 24. Re3 Qxh6 $14) 24. Kf1 {[%emt 0:00:02]} Qxh6 {[%emt 0:00:02]} 25. Kg1 $1 {[%emt 0:00:00]} g4 {[%emt 0:00:07]} 26. Rg3 {[%emt 0:00:04]} (26. Re3 $14) 26... Qf4 {[%emt 0:00:13]} 27. Bxb6 {[%emt 0:00:06]} (27. Nxd5 $2 {is the wrong capture.} Qxd4 28. Rd1 Qe5 $19) 27... axb6 {[%emt 0:00:01]} 28. Qxd5 {[%emt 0:00:06]} Bc6 {[%emt 0:00:10]} 29. Qd3 {[%emt 0:00:01]} Rd8 {[%emt 0:00:02]} 30. Rd1 {[%emt 0:00:01]} Rd7 {[%emt 0:00:01]} (30... Rfe8 $11) 31. Ne2 {[%emt 0:00:01]} Qg5 {[%emt 0:00:06] [#]} (31... Qb4 $142) 32. Qc3 {[%emt 0:00:06]} (32. Re3 $1 $16) 32... h5 {[%emt 0:00:03] [#]} 33. Rgd3 {[%emt 0:00:01]} (33. Rd4 $1 $16) 33... h4 $11 {[%emt 0:00:03]} 34. Rd4 {[%emt 0:00:01]} h3 {[%emt 0:00:01]} 35. Qg3 $2 {[%emt 0:00:02][%mdl 8192]} (35. Rc4 $1 $11 {and White is okay.}) 35... f5 $2 {[%emt 0:00:02]} ({Black should play} 35... hxg2 $19 36. Rc1 (36. Qxg4 {is a self mate.} Rh7) 36... Bf3 (36... Rh7 $2 37. Rxc6 bxc6 38. d7 $19)) 36. gxh3 $1 $14 {[%emt 0:00:02]} Rg8 {[%emt 0:00:04]} (36... Qh6 $14) 37. h4 {[%emt 0:00:03]} (37. Kf1 $16) 37... Qf6 $14 {[%emt 0:00:01]} 38. Nf4 {[%emt 0:00:01]} Rgg7 $2 {[%emt 0:00:04][%mdl 8192]} (38... Re8 $14 39. Ng2 b5) 39. R4d2 $2 {[%emt 0:00:01]} (39. Nh5 $18 Qe6 40. Nxg7 Kxg7 41. R4d3) 39... Qe5 $2 {[%emt 0:00:01][%mdl 8192]} (39... Qh6 $14) 40. Nh5 $2 {[%emt 0:00:02]} (40. Ng6+ $18 {is the precise move to win.} Rxg6 41. Qxe5+ Rgg7 42. Qxf5) 40... Qxg3+ {[%emt 0:00:01]} (40... Qe4 $16 {was worth a try.} 41. Kh2 Rg6) 41. fxg3 $18 {[%emt 0:00:01]} Rg6 {[%emt 0:00:01]} 42. Nf4 {[%emt 0:00:01]} Rf6 {[%emt 0:00:01]} 43. Kf2 {[%emt 0:00:01]} Bf3 {[%emt 0:00:01]} 44. Ne2 {[%emt 0:00:03]} Re6 $2 {[%emt 0:00:02]} (44... Kg7 {is a better chance.} 45. Rd4 Re6) 45. Nd4 $18 {[%emt 0:00:01]} Rexd6 {[%emt 0:00:07]} 46. Nxf3 {[%emt 0:00:02]} 1-0

[Event "Austria Championship Blitz 2024"]
[Site "Innsbruck"]
[Date "2024.06.01"]
[Round "11.3"]
[White "Hengl, Philip"]
[Black "Shengelia, David"]
[Result "0-1"]
[ECO "B66"]
[WhiteElo "2173"]
[BlackElo "2465"]
[Annotator "TA"]
[PlyCount "88"]
[EventDate "2024.06.01"]
[EventType "swiss"]
[EventCountry "AUT"]
[SourceTitle "playchess.com"]
[Source "ChessBase"]
[SourceQuality "1"]
[TimeControl "180+2"]

{[%evp 18,88,36,14,16,10,7,0,13,0,0,-6,0,-15,0,0,0,-5,-4,-1,-20,-21,45,54,54,50,111,97,172,168,186,174,164,164,162,143,161,136,181,86,66,-33,-8,-43,-12,-71,-86,-83,-88,-57,27,0,0,-109,0,-277,-288,-323,-323,-478,-454,-1742,-1768,-1131,-1131,-1131,-1131,-1112,-1091,-29972,-929,-760,-608]} 1. e4 {[%emt 0:00:01]} c5 {[%emt 0:00:00]} 2. Nf3 {[%emt 0:00:01]} Nc6 {[%emt 0:00:01]} 3. d4 {[%emt 0:00:02]} cxd4 {[%emt 0:00:01]} 4. Nxd4 {[%emt 0:00:01]} Nf6 {[%emt 0:00:01]} 5. Nc3 {[%emt 0:00:01]} d6 {[%emt 0:00:02]} 6. Bg5 {[%emt 0:00:06]} e6 {[%emt 0:00:01]} 7. Qd2 {[%emt 0:00:07]} Be7 {[%emt 0:00:02]} 8. O-O-O {[%emt 0:00:03]} Nxd4 9. Qxd4 a6 10. f3 {[%emt 0:00:05]} b5 {[%emt 0:00:10]} 11. Kb1 {[%emt 0:00:05]} Bb7 {[%emt 0:00:11]} 12. h4 {[%emt 0:00:12]} Rc8 {[%emt 0:00:16] The position is equal.} 13. h5 {[%emt 0:00:26]} h6 {[%emt 0:00:02]} 14. Be3 {[%emt 0:00:06]} Qc7 {[%emt 0:00:05]} (14... d5 {is more complex.} 15. exd5 Nxd5 16. Nxd5 Bxd5 17. Qg4 Bg5) 15. Qb6 {[%emt 0:00:39]} Qxb6 {[%emt 0:00:08]} 16. Bxb6 {[%emt 0:00:02]} b4 {[%emt 0:00:13]} 17. Ne2 {[%emt 0:00:10][%cal Bc3e2,Be2f4,Bf4g6][%mdl 32]} d5 {[%emt 0:00:02]} 18. e5 {[%emt 0:00:12]} Nd7 {[%emt 0:00:01][%csl LRb6,LRe5][%cal Bf6d7,Bd7f8,Bf8e6][%mdl 32]} 19. Bd4 {[%emt 0:00:01][%cal Bb6d4,Bd4e3,Be3h6][%mdl 32]} f6 {[%emt 0:00:10]} (19... a5 $11) 20. exf6 $14 {[%emt 0:00:07]} gxf6 {[%emt 0:00:01]} 21. Nf4 {[%emt 0:00:22]} e5 {[%emt 0:00:42]} (21... Nf8 $1 $14) 22. Ng6 $16 {[%emt 0:00:01]} Rg8 {[%emt 0:00:02]} (22... Rh7 $16) 23. Be3 $18 {[%emt 0:00:02]} Nf8 {[%emt 0:00:12]} 24. Nxe7 {[%emt 0:00:03]} (24. Bxh6 Nxg6 25. hxg6 Rxg6 $11) 24... Kxe7 {[%emt 0:00:00]} 25. Bxh6 {[%emt 0:00:01]} Ne6 {[%emt 0:00:02]} 26. Be3 {[%emt 0:00:05] Dodges Nd4} d4 {[%emt 0:00:01]} 27. Bc1 {[%emt 0:00:03]} e4 {[%emt 0:00:01]} 28. fxe4 {[%emt 0:00:07]} (28. Re1 $18) 28... Bxe4 $16 {[%emt 0:00:01]} 29. Bxa6 {[%emt 0:00:04]} (29. Rd2 Rxc2 30. Rxc2 Rc8 $17) (29. Bd3 $14 Bxd3 30. Rxd3 Rxg2 31. h6) 29... Bxc2+ $15 {[%emt 0:00:06]} 30. Ka1 {[%emt 0:00:01]} Ra8 {[%emt 0:00:01]} (30... Rc7 $5 31. Rd2 Ra8 32. Rxc2 Rxc2 $15) 31. Bb7 {[%emt 0:00:08] [#]} (31. Bc4 $1 $11 Bxd1 (31... Rxg2 $2 32. Rde1 $18) 32. Rxd1) 31... Ra7 $1 $36 {[%emt 0:00:08][%mdl 2048] Black has strong initiative. Black has more active pieces.} 32. Bd5 {[%emt 0:00:05][%cal Oh1e1] Rhe1! would now be deadly.} (32. Rd2 $2 b3 33. Rxc2 bxc2 $19) 32... Bxd1 {[%emt 0:00:16]} 33. Rxd1 {[%emt 0:00:02]} Rd8 {[%emt 0:00:05]} (33... Ra5 $1 $15 34. Bf3 b3) 34. Bb3 {[%emt 0:00:03]} Nc5 {[%emt 0:00:01]} 35. Re1+ {[%emt 0:00:10] [#]} (35. Bc4 $11) 35... Kd7 {[%emt 0:00:08]} ({Black should play} 35... Kd6 $1 $17 36. Bf4+ Kc6) 36. Kb1 $2 {[%emt 0:00:08][%mdl 8192]} (36. Bc4 $11) 36... Nxb3 $19 {[%emt 0:00:03]} 37. axb3 {[%emt 0:00:01][%mdl 4096] Endgame. KRR-KRB} d3 {[%emt 0:00:04] ( -> ...Rda8)} 38. Rd1 {[%emt 0:00:04]} (38. Bf4 {was necessary.}) 38... Ke6 {[%emt 0:00:02] White must now prevent ...Rda8.} 39. h6 {[%emt 0:00:08]} (39. Bh6 $142 Ra5 40. g4) 39... Rda8 {[%emt 0:00:13][%csl Ga8][%cal Ra7a1]} 40. Rxd3 {[%emt 0:00:02]} Ra1+ {[%emt 0:00:01]} 41. Kc2 {[%emt 0:00:00]} Rc8+ {[%emt 0:00:01]} 42. Kd2 {[%emt 0:00:04]} Raxc1 {[%emt 0:00:03]} 43. Rh3 {[%emt 0:00:12]} R1c7 {[%emt 0:00:03]} (43... R1c2+ $142 44. Ke3 Rxb2 (44... Rxg2 $2 45. Rh1 $19) 45. Kf4 Rxg2 46. Re3+ Kf7 47. Re4 Rf2+ 48. Kg3 Rf5 49. h7 Rb5 50. Kf2 Rh8 51. Rh4 Kg6 52. Ke3 Rxh7 53. Rg4+ Kf7 54. Rg2 Rh3+ 55. Ke4 Rh4+ (55... Rxb3 $2 56. Rg1 $19) 56. Kf3 Rf5+ 57. Ke3 Rc5 58. Rf2 Rc3+ 59. Kd2 Rh1 (59... Rxb3 {is a self mate.} 60. Kc2 Rhh3 61. Rd2 Rhc3+ 62. Kd1 Rb1+ 63. Ke2 b3 64. Kf2 Ra1 65. Ke2 Rh1 66. Rd7+ Kg6 67. Rd3 Rh2+ 68. Ke3 Rh3+ 69. Kf2 Rhxd3 70. Kf1 b2 71. Kg1 b1=Q+ 72. Kh2 Rd2#) (59... Rd4+ {gets mated.} 60. Ke1 Rxb3 61. Ra2 Ra3 62. Rc2 b3 63. Rc7+ Kg6 64. Rc8 Ra2 65. Rg8+ Kf7 66. Rh8 Rc4 67. Rd8 Rc1+ 68. Rd1 Rxd1+ 69. Kxd1 Rc2 70. Ke1 b2 71. Kf1 b1=Q#) 60. Rg2 Ra1 (60... Rxb3 {leads to mate.} 61. Kc2 Rhh3 62. Rd2 Rhc3+ 63. Kd1 Rd3 64. Rxd3 Rxd3+ 65. Kc2 Rc3+ 66. Kb2 Ke6 67. Ka1 Kd5 68. Ka2 Kc4 69. Kb2 Kd3 70. Kb1 Rb3+ 71. Ka2 Kc2 72. Ka1 Ra3#) 61. Re2 f5 (61... Rxb3 62. Kc2 Ra2+ 63. Kxb3 Rxe2 64. Kxb4 f5 65. Kc4 f4 66. Kd4 f3 67. Kd3 Kf6 68. Kd4 f2 69. Kc5 f1=Q 70. Kd4 Rd2+ 71. Kc3 Qc1+ 72. Kb3 Rb2+ 73. Ka4 Qa1#) 62. Re5 Ra2+ (62... Rxb3 $2 63. Kc2 $19) 63. Kd1 Rh3 (63... Rxb3 64. Kc1 Rf3 65. Kb1 b3 66. Re1 f4 67. Rh1 Rff2 68. Rh7+ Kf6 69. Rh1 Rfb2+ 70. Kc1 Rh2 71. Rxh2 Rxh2 72. Kb1 f3 73. Kc1 Ra2 74. Kd1 f2 75. Kc1 f1=Q#) 64. Rxf5+ Kg6 65. Re5 Rhh2 (65... Rxb3 66. Kc1 Rh2 67. Re6+ Kf5 68. Rd6 Rbb2 69. Rd5+ Ke4 70. Rd8 Rhc2+ 71. Kd1 b3 72. Re8+ Kf5 73. Rf8+ Ke6 74. Re8+ Kd7 75. Re7+ Kxe7 76. Ke1 Rc1#) 66. Re6+ Kf5 67. Re2 Rhxe2 68. Kc1 Re1#) 44. Rh4 {[%emt 0:00:01]} Rh8 {[%emt 0:00:08] What a bad dream for White.   Weighted Error Value: White=0.76/Black=0.35.  Loses game:     	White=1     	---        Mistake:       	White=6     	Black=5      Inaccurate:     	White=2     	Black=2      OK:         	White=8     	Black=8      Best:        	White=2     	Black=5      Strong:       	---       	Black=1} 0-1

[Event "Austria Championship Blitz 2024"]
[Site "Innsbruck"]
[Date "2024.06.01"]
[Round "11.4"]
[White "Myagmarsuren, Mandukhai"]
[Black "Platzgummer, Fabian"]
[Result "1/2-1/2"]
[ECO "D25"]
[WhiteElo "2092"]
[BlackElo "2311"]
[Annotator "RC"]
[PlyCount "46"]
[EventDate "2024.06.01"]
[EventType "swiss"]
[EventCountry "AUT"]
[SourceTitle "playchess.com"]
[Source "ChessBase"]
[SourceQuality "1"]
[TimeControl "180+2"]

1. d4 {[%emt 0:00:01]} d5 {[%emt 0:00:01]} 2. c4 {[%emt 0:00:01]} dxc4 {[%emt 0:00:05]} 3. Nf3 {[%emt 0:00:02]} Nf6 {[%emt 0:00:01]} 4. e3 {[%emt 0:00:01]} Be6 {[%emt 0:00:02]} 5. Nc3 {[%emt 0:00:01]} h6 {[%emt 0:00:06]} 6. e4 {[%emt 0:00:03]} c6 {[%emt 0:00:06]} 7. Be2 {[%emt 0:00:14]} Nbd7 {[%emt 0:00:14]} 8. O-O {[%emt 0:00:04]} b5 {[%emt 0:00:04]} 9. d5 {[%emt 0:00:01]} cxd5 {[%emt 0:00:05]} 10. exd5 {[%emt 0:00:02]} Bg4 {[%emt 0:00:08]} 11. Nxb5 {[%emt 0:00:01]} Nb6 {[%emt 0:00:07]} 12. d6 {[%emt 0:00:18]} exd6 {[%emt 0:00:13]} 13. Bf4 {[%emt 0:00:01]} Nfd5 {[%emt 0:00:09]} 14. Bg3 {[%emt 0:00:29]} Be7 {[%emt 0:00:03]} 15. Bxc4 {[%emt 0:00:02]} Bxf3 {[%emt 0:00:15]} 16. Qxf3 {[%emt 0:00:02]} Nf6 {[%emt 0:00:51]} 17. Bb3 {[%emt 0:00:17]} O-O {[%emt 0:00:05]} 18. Rad1 {[%emt 0:00:06]} d5 {[%emt 0:00:02]} 19. Nc7 {[%emt 0:00:04]} Rc8 {[%emt 0:00:05]} 20. Nxd5 {[%emt 0:00:01]} Nbxd5 {[%emt 0:00:04]} 21. Bxd5 {[%emt 0:00:03]} Nxd5 {[%emt 0:00:03]} 22. Rxd5 {[%emt 0:00:02]} Qb6 {[%emt 0:00:01]} 23. b3 {[%emt 0:00:03]} Rc2 {[%emt 0:00:12]} 1/2-1/2

[Event "Austria Championship Blitz 2024"]
[Site "Innsbruck"]
[Date "2024.06.01"]
[Round "11.5"]
[White "Wohlfahrt, Herbert"]
[Black "Gschiel, Alexander"]
[Result "1/2-1/2"]
[ECO "A14"]
[WhiteElo "2328"]
[BlackElo "2355"]
[Annotator "RC"]
[PlyCount "162"]
[EventDate "2024.06.01"]
[EventType "swiss"]
[EventCountry "AUT"]
[SourceTitle "playchess.com"]
[Source "ChessBase"]
[SourceQuality "1"]
[TimeControl "180+2"]

1. Nf3 {[%emt 0:00:00]} d5 {[%emt 0:00:01]} 2. c4 {[%emt 0:00:01]} e6 {[%emt 0:00:02]} 3. g3 {[%emt 0:00:01]} Nf6 {[%emt 0:00:01]} 4. Bg2 {[%emt 0:00:01]} Be7 {[%emt 0:00:01]} 5. O-O {[%emt 0:00:01]} O-O {[%emt 0:00:01]} 6. b3 {[%emt 0:00:01]} d4 {[%emt 0:00:01]} 7. e3 {[%emt 0:00:02]} c5 {[%emt 0:00:01]} 8. exd4 {[%emt 0:00:01]} cxd4 {[%emt 0:00:01]} 9. Re1 {[%emt 0:00:01]} Nc6 {[%emt 0:00:01]} 10. Ba3 {[%emt 0:00:09]} Re8 {[%emt 0:00:04]} 11. d3 {[%emt 0:00:05]} a5 {[%emt 0:00:03]} 12. Bxe7 {[%emt 0:00:04]} Qxe7 {[%emt 0:00:01]} 13. a3 {[%emt 0:00:07]} Qc7 {[%emt 0:00:04]} 14. Nbd2 {[%emt 0:00:06]} e5 {[%emt 0:00:02]} 15. Qc2 {[%emt 0:00:04]} Bd7 {[%emt 0:00:16]} 16. Rab1 {[%emt 0:00:19]} Qd6 {[%emt 0:00:06]} 17. c5 {[%emt 0:00:11]} Qc7 {[%emt 0:00:08]} 18. b4 {[%emt 0:00:00]} axb4 19. axb4 {[%emt 0:00:01]} Nd5 {[%emt 0:00:03]} 20. b5 {[%emt 0:00:21]} Ncb4 {[%emt 0:00:44]} 21. Qc4 {[%emt 0:00:01]} Qa5 {[%emt 0:00:01]} 22. Nxe5 {[%emt 0:00:33]} Bxb5 {[%emt 0:00:21]} 23. Qxd4 {[%emt 0:00:07]} Nc2 {[%emt 0:00:05]} 24. Qxd5 {[%emt 0:00:04]} Nxe1 {[%emt 0:00:02]} 25. Nxf7 {[%emt 0:00:12]} Qa2 {[%emt 0:00:37]} 26. Qxa2 {[%emt 0:00:20]} Rxa2 {[%emt 0:00:01]} 27. Bd5 {[%emt 0:00:04]} Rxd2 {[%emt 0:00:12]} 28. Nd6+ {[%emt 0:00:03]} Kf8 {[%emt 0:00:05]} 29. Nxe8 {[%emt 0:00:05]} Bxe8 {[%emt 0:00:40]} 30. Rxe1 {[%emt 0:00:04]} Rxd3 {[%emt 0:00:03]} 31. Bxb7 {[%emt 0:00:02]} Rb3 {[%emt 0:00:03]} 32. c6 {[%emt 0:00:14]} Rc3 {[%emt 0:00:01]} 33. Re6 {[%emt 0:00:31]} Kf7 {[%emt 0:00:01]} 34. Rd6 {[%emt 0:00:00]} Ke7 {[%emt 0:00:01]} 35. Rd4 {[%emt 0:00:04]} Bxc6 36. Bxc6 {[%emt 0:00:01]} Rxc6 {[%emt 0:00:02]} 37. Kg2 {[%emt 0:00:01]} Rc2 {[%emt 0:00:02]} 38. g4 {[%emt 0:00:02]} Kf6 {[%emt 0:00:01]} 39. Kg3 {[%emt 0:00:02]} h6 {[%emt 0:00:04]} 40. Rd6+ {[%emt 0:00:03]} Kf7 {[%emt 0:00:01]} 41. h4 {[%emt 0:00:01]} Rc3+ {[%emt 0:00:03]} 42. f3 {[%emt 0:00:01]} Ra3 {[%emt 0:00:01]} 43. h5 {[%emt 0:00:01]} Ra4 {[%emt 0:00:02]} 44. Rc6 {[%emt 0:00:03]} Rb4 {[%emt 0:00:02]} 45. Rc3 {[%emt 0:00:01]} Ra4 {[%emt 0:00:01]} 46. Re3 {[%emt 0:00:01]} Rb4 {[%emt 0:00:01]} 47. Re4 {[%emt 0:00:01]} Rb6 {[%emt 0:00:04]} 48. Kf4 {[%emt 0:00:02]} Rf6+ {[%emt 0:00:00]} 49. Ke3 {[%emt 0:00:00]} Ra6 {[%emt 0:00:01]} 50. Rb4 {[%emt 0:00:01]} Ra3+ {[%emt 0:00:01]} 51. Kf4 {[%emt 0:00:01]} Ra5 {[%emt 0:00:03]} 52. Re4 {[%emt 0:00:02]} Kf6 {[%emt 0:00:03]} 53. Rc4 {[%emt 0:00:03]} Kf7 {[%emt 0:00:02]} 54. Ke4 {[%emt 0:00:02]} Kf6 {[%emt 0:00:02]} 55. Rd4 {[%emt 0:00:00]} Re5+ {[%emt 0:00:04]} 56. Kf4 {[%emt 0:00:04]} Ra5 {[%emt 0:00:00]} 57. Rd6+ {[%emt 0:00:02]} Kf7 {[%emt 0:00:01]} 58. Rb6 {[%emt 0:00:00]} Ra4+ {[%emt 0:00:03]} 59. Kg3 {[%emt 0:00:01]} Ra3 {[%emt 0:00:02]} 60. Rd6 {[%emt 0:00:03]} Rb3 {[%emt 0:00:02]} 61. Rd4 {[%emt 0:00:01]} Ra3 {[%emt 0:00:01]} 62. Kf4 {[%emt 0:00:01]} Rb3 {[%emt 0:00:01]} 63. Re4 {[%emt 0:00:01]} Ra3 {[%emt 0:00:01]} 64. Re3 {[%emt 0:00:01]} Ra4+ {[%emt 0:00:00]} 65. Kf5 {[%emt 0:00:01]} Ra5+ {[%emt 0:00:04]} 66. Re5 {[%emt 0:00:01]} Ra6 {[%emt 0:00:02]} 67. f4 {[%emt 0:00:05]} Ra7 {[%emt 0:00:09]} 68. Rb5 {[%emt 0:00:02]} Rc7 {[%emt 0:00:01]} 69. Ra5 {[%emt 0:00:05]} Rb7 {[%emt 0:00:01]} 70. Ke5 {[%emt 0:00:01]} Re7+ {[%emt 0:00:01]} 71. Kf5 {[%emt 0:00:01]} Rb7 {[%emt 0:00:01]} 72. Rd5 {[%emt 0:00:02]} Ra7 {[%emt 0:00:01]} 73. g5 {[%emt 0:00:03]} hxg5 {[%emt 0:00:05]} 74. fxg5 {[%emt 0:00:26]} g6+ 75. hxg6+ {[%emt 0:00:00]} Kg7 {[%emt 0:00:03]} 76. Re5 {[%emt 0:00:00]} Ra6 {[%emt 0:00:04]} 77. Re7+ {[%emt 0:00:00]} Kg8 {[%emt 0:00:02]} 78. Rf7 {[%emt 0:00:00]} Ra5+ {[%emt 0:00:02]} 79. Kg4 {[%emt 0:00:02]} Ra1 {[%emt 0:00:02]} 80. Rb7 {[%emt 0:00:03]} Rg1+ {[%emt 0:00:03]} 81. Kf5 {[%emt 0:00:02]} Rf1+ {[%emt 0:00:03]} 1/2-1/2

[Event "Austria Championship Blitz 2024"]
[Site "Innsbruck"]
[Date "2024.06.01"]
[Round "11.6"]
[White "Kienboeck, Benjamin"]
[Black "Cafasso, Elia"]
[Result "1-0"]
[ECO "C89"]
[WhiteElo "2187"]
[BlackElo "2178"]
[Annotator "RC"]
[PlyCount "101"]
[EventDate "2024.06.01"]
[EventType "swiss"]
[EventCountry "AUT"]
[SourceTitle "playchess.com"]
[Source "ChessBase"]
[SourceQuality "1"]
[TimeControl "180+2"]

1. e4 {[%emt 0:00:02]} e5 {[%emt 0:00:00]} 2. Nf3 {[%emt 0:00:01]} Nc6 {[%emt 0:00:01]} 3. Bb5 {[%emt 0:00:01]} a6 {[%emt 0:00:01]} 4. Ba4 {[%emt 0:00:01]} Nf6 {[%emt 0:00:01]} 5. O-O {[%emt 0:00:01]} Be7 {[%emt 0:00:01]} 6. Re1 {[%emt 0:00:01]} b5 {[%emt 0:00:01]} 7. Bb3 {[%emt 0:00:01]} O-O {[%emt 0:00:02]} 8. c3 {[%emt 0:00:03]} d5 {[%emt 0:00:01]} 9. exd5 {[%emt 0:00:06]} Nxd5 {[%emt 0:00:01]} 10. Nxe5 {[%emt 0:00:06]} Nxe5 {[%emt 0:00:02]} 11. Rxe5 {[%emt 0:00:01]} c6 {[%emt 0:00:01]} 12. d4 {[%emt 0:00:02]} Bd6 {[%emt 0:00:01]} 13. Re1 {[%emt 0:00:01]} Qh4 {[%emt 0:00:02]} 14. g3 {[%emt 0:00:02]} Qh3 {[%emt 0:00:01]} 15. Qf3 {[%emt 0:00:35]} Bg4 {[%emt 0:00:01]} 16. Qg2 {[%emt 0:00:01]} Qh5 {[%emt 0:00:01]} 17. Bxd5 {[%emt 0:01:00]} cxd5 {[%emt 0:00:02]} 18. Be3 {[%emt 0:00:02]} Bf3 {[%emt 0:00:05]} 19. Qf1 {[%emt 0:00:01]} f5 {[%emt 0:00:01]} 20. Nd2 {[%emt 0:01:01]} f4 {[%emt 0:00:01]} 21. Nxf3 {[%emt 0:00:03]} fxe3 {[%emt 0:00:01]} 22. Rxe3 {[%emt 0:00:01]} Rxf3 {[%emt 0:00:02]} 23. Qe2 {[%emt 0:00:04]} Raf8 {[%emt 0:00:03]} 24. Rxf3 {[%emt 0:00:21]} Qxf3 {[%emt 0:00:18]} 25. Qe6+ {[%emt 0:00:08]} Qf7 {[%emt 0:00:11]} 26. Qxd6 {[%emt 0:00:04]} Qxf2+ {[%emt 0:00:01]} 27. Kh1 {[%emt 0:00:01]} Qf3+ {[%emt 0:00:02]} 28. Kg1 {[%emt 0:00:00]} Qe3+ {[%emt 0:00:03]} 29. Kh1 {[%emt 0:00:02]} Qe4+ {[%emt 0:00:00]} 30. Kg1 {[%emt 0:00:00]} h5 {[%emt 0:00:27]} 31. Qe5 {[%emt 0:00:02]} Qf3 {[%emt 0:00:06]} 32. Re1 {[%emt 0:00:07]} h4 {[%emt 0:00:08]} 33. Qe6+ {[%emt 0:00:02]} Kh8 {[%emt 0:00:02]} 34. Qe3 {[%emt 0:00:03]} Qf5 {[%emt 0:00:09]} 35. Qe5 {[%emt 0:00:02]} Qf2+ {[%emt 0:00:01]} 36. Kh1 {[%emt 0:00:02]} Qf3+ {[%emt 0:00:03]} 37. Kg1 {[%emt 0:00:00]} h3 {[%emt 0:00:02]} 38. Qe2 {[%emt 0:00:07]} Qf5 {[%emt 0:00:10]} 39. Rf1 {[%emt 0:00:00]} Qxf1+ {[%emt 0:00:19]} 40. Qxf1 {[%emt 0:00:00]} Rxf1+ {[%emt 0:00:01]} 41. Kxf1 {[%emt 0:00:00]} Kh7 {[%emt 0:01:48]} 42. Kf2 Kg6 {[%emt 0:00:00]} 43. Kf3 {[%emt 0:00:01]} Kf5 {[%emt 0:00:00]} 44. g4+ {[%emt 0:00:03]} Kf6 {[%emt 0:00:00]} 45. Kg3 {[%emt 0:00:03]} Kg5 {[%emt 0:00:00]} 46. b4 {[%emt 0:00:01]} Kf6 {[%emt 0:00:00]} 47. Kxh3 {[%emt 0:00:01]} g5 {[%emt 0:00:00]} 48. Kg3 {[%emt 0:00:01]} Kg6 {[%emt 0:00:00]} 49. h4 {[%emt 0:00:03]} Kh6 {[%emt 0:00:00]} 50. hxg5+ {[%emt 0:00:01]} Kxg5 {[%emt 0:00:00]} 51. Kf3 {[%emt 0:00:01]} 1-0